[Event "MCCT Oslo Esports Cup 2022"]
[Site "Oslo"]
[Date "2022.04.20"]
[Round "6.2"]
[White "Le, Quang Liem"]
[Black "Giri, Anish"]
[Result "1-0"]
[ECO "A34"]
[WhiteElo "2709"]
[BlackElo "2773"]
[Annotator "TA"]
[PlyCount "73"]
[EventDate "2022.04.14"]
[EventType "tourn"]
[EventCountry "NOR"]
[SourceTitle "playchess.com"]
[Source "ChessBase"]
[SourceQuality "1"]
[TimeControl "900+10"]

{[%evp 14,73,7,8,14,6,11,6,8,-3,75,84,162,117,226,180,524,524,524,531,538,502,583,577,561,585,555,572,535,514,471,154,157,157,162,157,162,161,157,168,200,199,253,173,166,164,219,223,910,886,2016,1957,3062,2308,29986,812,2016,2065,2065,1379,29996,29997]} 1. d4 {[%emt 0:00:00]} Nf6 {[%emt 0:00:00]} 2. Nf3 {[%emt 0:00:02]} g6 {[%emt 0:00:01]} 3. c4 {[%emt 0:00:02]} Bg7 {[%emt 0:00:02]} 4. Nc3 {[%emt 0:00:07]} d5 {[%emt 0:00:01]} 5. cxd5 {[%emt 0:00:04]} Nxd5 {[%emt 0:00:00]} 6. Bg5 {[%emt 0:00:02]} Nxc3 {[%emt 0:01:17]} 7. bxc3 {[%emt 0:00:00]} c5 {[%emt 0:00:02]} 8. e3 {[%emt 0:00:04]} Qa5 {[%emt 0:00:39] A34: Symmetrical English: 2 Nc3, lines with ...d5.} 9. Qd2 {[%emt 0:00:03]} Bf5 {[%emt 0:00:07]} 10. Rc1 {[%emt 0:00:45]} Nc6 {[%emt 0:00:31] The position is equal.} 11. Be2 {[%emt 0:00:51] [#]} O-O-O $146 {[%emt 0:02:43]} (11... h6 $11 {keeps the balance.} 12. Bh4 O-O) ({Predecessor:} 11... O-O 12. O-O h6 13. Bh4 Rfd8 14. Qb2 cxd4 15. cxd4 g5 16. Bg3 Qb4 17. Qa1 Rac8 {½-½ (68) Bu,X (2705)-Bok,B (2598) Doha 2016}) 12. O-O $16 {[%emt 0:00:22]} Be4 {[%emt 0:00:20]} (12... f6 $16 13. Bh4 g5) 13. Qb2 {[%emt 0:00:54]} cxd4 {[%emt 0:02:55]} (13... Bd5 $16 {might work better.}) 14. cxd4 $40 {[%emt 0:00:00][%mdl 128] Hoping for Bf4. Black is in trouble.} Bxf3 $2 {[%emt 0:01:54]} (14... Kb8 {is more resistant.} 15. Nd2 Bd5) 15. Bxf3 {[%emt 0:02:23]} Qxg5 {[%emt 0:00:01]} 16. Rb1 {[%emt 0:00:00][%csl Gb1][%cal Rb2b7]} Na5 {[%emt 0:00:09]} 17. Rfc1+ {[%emt 0:00:55]} Kd7 {[%emt 0:00:06]} 18. h4 {[%emt 0:00:02]} Qf5 {[%emt 0:00:32]} 19. e4 {[%emt 0:00:49]} Qf4 {[%emt 0:00:18]} 20. Qb5+ {[%emt 0:00:09]} Ke6 {[%emt 0:00:51][%cal Og7d4]} 21. d5+ {[%emt 0:00:43]} Kf6 {[%emt 0:00:02]} 22. Qxa5 $2 {[%emt 0:00:03]} (22. e5+ $1 $18 Qxe5 23. Qxa5) 22... Bh6 $16 {[%emt 0:00:51]} 23. Rc7 {[%emt 0:00:53]} Qe5 {[%emt 0:01:26]} 24. Rcxb7 {[%emt 0:02:23]} (24. Rbxb7 Qa1+ 25. Kh2 Bf4+ 26. g3 Bxc7 27. Qxc7 Rhe8 $11) 24... Kg7 {[%emt 0:00:10]} 25. g3 {[%emt 0:00:13]} Rhe8 {[%emt 0:00:43]} 26. Kg2 {[%emt 0:00:06] White is more active.} Rc8 {[%emt 0:00:42]} 27. Qa4 {[%emt 0:00:28]} (27. Qxa7 Ra8 28. Qc5 Rxa2) (27. Rxa7 Rc2 28. Qb6 Rec8) 27... a5 {[%emt 0:00:44]} (27... Kf8 $142 28. Rxa7 (28. Qxa7 Ra8 $16) 28... Bg7) 28. R1b2 {[%emt 0:00:41]} ({Don't play} 28. Qxa5 $6 Rc2 $16) 28... Bc1 {[%emt 0:00:16]} 29. Rc2 {[%emt 0:00:14][%cal Oc2c1] aiming for Rxc1!} Rxc2 {[%emt 0:00:15]} (29... Red8 $142 30. Rb5 (30. Qxa5 $2 Rxc2 31. Qxd8 Qd4 $19) 30... Rxc2 31. Qxc2 Ba3 32. Rxa5 Bd6) 30. Qxc2 $18 {[%emt 0:00:00]} Ba3 {[%emt 0:00:02]} (30... Bh6 31. Rb5 Qd4) 31. Qa4 $1 {[%emt 0:00:06][%csl LRa3,LRa5,LRe8]} Bc5 {[%emt 0:00:22]} 32. Qxe8 {[%emt 0:00:34]} Qd4 {[%emt 0:00:01]} 33. Kh3 {[%emt 0:00:12] White threatens Rb8 and mate.} Qxf2 {[%emt 0:00:02] [#]} 34. Bg2 {[%emt 0:00:01]} (34. Rb8 $142 $1 e6 35. Qh8+ Kh6 {[#]} 36. Rg8 $1 Bd4 37. e5 $1 Qf1+ 38. Bg2 Qf5+ 39. g4) 34... g5 {[%emt 0:00:48]} 35. Rb8 {[%emt 0:00:17] White wants to mate with Qg8+.} gxh4 {[%emt 0:00:47]} 36. Qg8+ {[%emt 0:00:05]} Kf6 {[%emt 0:00:26]} 37. Qh8+ {[%emt 0:00:14] Weighted Error Value: White=0.09 (flawless) /Black=0.52} 1-0

[Event "MCCT Oslo Esports Cup 2022"]
[Site "Oslo"]
[Date "2022.04.20"]
[Round "6.2"]
[White "Praggnanandhaa R"]
[Black "Duda, Jan-Krzysztof"]
[Result "0-1"]
[ECO "D87"]
[WhiteElo "2624"]
[BlackElo "2750"]
[Annotator "TA"]
[PlyCount "74"]
[EventDate "2022.04.14"]
[EventType "tourn"]
[EventCountry "NOR"]
[SourceTitle "playchess.com"]
[Source "ChessBase"]
[SourceQuality "1"]
[TimeControl "900+10"]

{[%evp 19,74,15,37,18,28,32,20,0,0,0,0,0,0,0,0,0,0,0,0,0,27,23,29,0,21,0,0,-18,0,-213,-214,-208,-212,-198,-39,-56,-70,-389,-381,-383,-343,-406,-414,-417,-400,-596,-591,-1929,-1536,-1919,-1827,-29990,-29988,-29991,-29992,-29992,-29991]} 1. d4 {[%emt 0:00:00]} Nf6 {[%emt 0:00:00]} 2. c4 {[%emt 0:00:02]} g6 {[%emt 0:00:08]} 3. Nc3 {[%emt 0:00:01]} d5 {[%emt 0:00:01]} 4. cxd5 {[%emt 0:00:01]} Nxd5 {[%emt 0:00:00]} 5. e4 {[%emt 0:00:00]} Nxc3 {[%emt 0:00:01]} 6. bxc3 {[%emt 0:00:00]} Bg7 {[%emt 0:00:01]} 7. Bc4 {[%emt 0:00:01]} c5 {[%emt 0:00:02]} 8. Ne2 {[%emt 0:00:01]} O-O {[%emt 0:00:08]} 9. Be3 {[%emt 0:00:25]} Nc6 {[%emt 0:00:06]} 10. O-O {[%emt 0:00:01]} e6 {[%emt 0:00:05] 10...Bg4 is the recent fashion.} 11. dxc5 {[%emt 0:00:07] D87: Exchange Grünfeld: Classical Line: Variations without ...cxd4.} Qa5 {[%emt 0:00:24]} 12. f4 {[%emt 0:00:02]} Rd8 {[%emt 0:00:34]} 13. Qe1 {[%emt 0:00:02] The position is equal.} Qa4 {[%emt 0:01:44]} 14. Bb3 {[%emt 0:00:03]} Qxe4 {[%emt 0:00:11]} 15. Ng3 {[%emt 0:00:02]} Qd3 {[%emt 0:00:01]} 16. Rc1 {[%emt 0:00:01]} Bd7 {[%emt 0:04:18]} 17. Qf2 {[%emt 0:00:03]} Na5 {[%emt 0:02:12]} (17... Bxc3 $2 18. Rfd1 Nb4 19. Rxd3 $18) 18. Bc2 {[%emt 0:02:16]} Qa6 {[%emt 0:00:57]} 19. Bd4 {[%emt 0:04:16] [#]} Bxd4 $146 {[%emt 0:00:50]} ({Predecessor:} 19... Bb5 20. Rfd1 f5 21. Qe3 Qc6 22. Ne2 Bxe2 23. Qxe2 Kf7 24. g4 Qc7 25. Rd3 Re8 {½-½ (39) Brewer,S (2437)-Mende,I (2433) ICCF email 2019}) 20. cxd4 {[%emt 0:00:12] Threatening Ne4.} Bb5 {[%emt 0:00:07]} 21. Rfd1 {[%emt 0:00:35] Hoping for a4.} (21. Rfe1 $5 {[%cal Rg3e4]}) 21... f5 $1 {[%emt 0:00:01]} 22. h4 {[%emt 0:02:30]} Rd7 {[%emt 0:00:04]} 23. Re1 {[%emt 0:01:34]} Rad8 {[%emt 0:00:21]} 24. c6 $2 {[%emt 0:03:38]} (24. h5 $11 {and White is okay.}) 24... Nxc6 $19 {[%emt 0:01:01]} 25. Rxe6 {[%emt 0:00:05] aiming for Bb3.} Qxa2 {[%emt 0:01:25]} 26. Qe3 {[%emt 0:01:11] [#]} Nxd4 {[%emt 0:01:06]} (26... Rxd4 $2 27. Bb3 Bc4 28. Re8+ Rxe8 29. Qxe8+ Kg7 30. Bxa2 $18) ({Black should play} 26... Bc4 $1 $19 {[%cal Rc4e6]} 27. Re8+ (27. Bb1 $2 Qb3 $19) 27... Kf7 28. Rxd8 Rxd8) 27. Re8+ $15 {[%emt 0:00:11]} Kf7 $1 {[%emt 0:00:12][%cal Bg8f7,Bf7g7,Bg7h6][%mdl 32]} 28. Rxd8 {[%emt 0:01:59][%mdl 8192] This move loses the game for White.} ({Only move:} 28. Re1 $1 $15 Be2 29. Rxd8 Rxd8 30. Bd3) 28... Rxd8 $19 {[%emt 0:00:00][%cal Bd7d8,Bd8e8,Be8e2,Be2g2,Bg2g3][%mdl 32]} 29. Bb1 {[%emt 0:00:10]} Qd5 {[%emt 0:00:56]} (29... Qe6 30. Rc7+ Kf8 31. Qa3+ Qd6 32. Qxd6+ Rxd6 33. Rxb7 $19) 30. Qa3 {[%emt 0:00:04]} Qd6 {[%emt 0:00:25] Inhibits Rc7+.} 31. Ba2+ {[%emt 0:00:07]} Kg7 {[%emt 0:00:06]} 32. Qe3 {[%emt 0:00:20]} (32. Qxd6 $142 Rxd6 33. Rc7+ Rd7 34. Rc5) 32... Re8 {[%emt 0:00:26]} 33. Rc7+ {[%emt 0:00:10]} Kh6 {[%emt 0:00:05]} ({Stronger than} 33... Qxc7 34. Qxd4+ Kh6 35. Nxf5+ Kh5 36. Ng7+ Kh6 37. Nf5+ Kh5 38. Ng7+ Kh6 39. Nf5+ $11) 34. Qc1 {[%emt 0:00:24]} Bc6 {[%emt 0:00:10]} 35. Rf7 {[%emt 0:00:04] [#]} Re2 $1 {[%emt 0:00:03] Black mates.} 36. Kh2 {[%emt 0:00:20]} (36. Qxc6 Qxf4) 36... Rxg2+ {[%emt 0:00:04]} 37. Kh3 {[%emt 0:00:03]} Rxg3+ {[%emt 0:00:01] Weighted Error Value: White=0.98/Black=0.10 (very precise)} 0-1

[Event "MCCT Oslo Esports Cup 2022"]
[Site "Oslo"]
[Date "2022.04.20"]
[Round "6.2"]
[White "Hansen, Eric"]
[Black "Carlsen, Magnus"]
[Result "1/2-1/2"]
[ECO "B40"]
[WhiteElo "2606"]
[BlackElo "2864"]
[Annotator "TA"]
[PlyCount "93"]
[EventDate "2022.04.14"]
[EventType "tourn"]
[EventCountry "NOR"]
[SourceTitle "playchess.com"]
[Source "ChessBase"]
[SourceQuality "1"]
[TimeControl "900+10"]

{[%evp 17,93,23,16,16,17,0,0,0,0,0,0,-16,-12,-54,-2,-55,-58,-138,-78,-86,-92,-131,-41,-35,-50,-60,-22,-23,-21,-20,-12,-38,-35,-35,-23,-31,-20,-29,0,0,0,0,0,0,0,0,162,0,0,0,0,0,0,0,0,0,0,0,0,0,0,0,0,0,0,0,0,0,0,0,0,0,0,0,0,0,0,0]} 1. e4 {[%emt 0:00:00]} c5 {[%emt 0:00:00]} 2. Nf3 {[%emt 0:00:01]} e6 {[%emt 0:00:03]} 3. g3 {[%emt 0:00:24]} d5 {[%emt 0:00:14]} 4. exd5 {[%emt 0:00:03]} exd5 {[%emt 0:00:00]} 5. Bg2 {[%emt 0:00:01]} Nc6 {[%emt 0:00:10]} 6. O-O {[%emt 0:00:02]} Nf6 {[%emt 0:00:08]} 7. d4 {[%emt 0:00:33]} Be7 {[%emt 0:00:03]} 8. dxc5 {[%emt 0:02:27]} Bxc5 {[%emt 0:00:20]} 9. Nc3 {[%emt 0:00:13]} O-O {[%emt 0:00:04]} 10. Bg5 {[%emt 0:00:03] B40: Sicilian: 2...e6, Unusual lines.} Be6 {[%emt 0:04:28] 10...d4 is more advanced technology.} 11. Nd2 {[%emt 0:03:23]} (11. Qd3 {seems wilder.} h6 12. Bxf6 Qxf6 13. Nxd5 Qxb2 14. Rfb1) 11... Bd4 {[%emt 0:02:23] [#]} 12. Nb3 $146 {[%emt 0:01:57]} ({Predecessor:} 12. Nb5 Bxb2 13. Rb1 Be5 14. f4 Bb8 15. f5 Bc8 16. Nc3 Ne7 17. Bxf6 gxf6 18. Qh5 {1-0 (34) Cubas,J (2537)-Moura,V (2031) Sao Paulo 2013}) 12... Bxc3 {[%emt 0:00:02]} 13. bxc3 {[%emt 0:00:00]} h6 {[%emt 0:00:01]} 14. Be3 {[%emt 0:00:16]} Rc8 {[%emt 0:00:15]} 15. a4 {[%emt 0:00:07]} Re8 {[%emt 0:00:10]} (15... Ne4 $15) 16. h3 {[%emt 0:00:05]} ({White should play} 16. Re1 $11) 16... Ne4 $15 {[%emt 0:00:07]} 17. Bd4 {[%emt 0:04:24]} ({Better is} 17. Bxe4 $15 dxe4 18. Qxd8 Rexd8 19. Kg2) 17... Bf5 {[%emt 0:00:15]} (17... b6 $142 18. Re1 Nxd4 19. cxd4 Bf5) 18. Re1 $17 {[%emt 0:00:10]} Nxd4 {[%emt 0:00:19]} 19. cxd4 {[%emt 0:00:11]} Nc3 {[%emt 0:01:58]} (19... a5 $17 {...b6 is the strong threat.} 20. Bxe4 Rxe4 21. Rxe4 dxe4) 20. Qd2 $15 {[%emt 0:00:19]} Rxe1+ {[%emt 0:00:05]} 21. Rxe1 {[%emt 0:00:01]} Nxa4 {[%emt 0:00:04]} 22. Qb4 $1 {[%emt 0:00:03][%csl LRa4,LRb7]} Nb6 {[%emt 0:01:58]} 23. Nc5 {[%emt 0:00:01]} Bxc2 {[%emt 0:00:32]} 24. Nxb7 {[%emt 0:00:04]} (24. Ra1 $5 {[%cal Ra1a7]}) 24... Qf6 {[%emt 0:00:01]} 25. Nc5 {[%emt 0:00:33]} Bf5 {[%emt 0:00:02][%cal Oa7a5]} 26. Re5 {[%emt 0:00:20]} Kh7 {[%emt 0:00:32]} 27. Bf1 {[%emt 0:00:28][%cal Oe5f5]} Bg6 {[%emt 0:00:20]} 28. h4 {[%emt 0:00:08]} Rxc5 {[%emt 0:00:14]} 29. Qxc5 {[%emt 0:00:02]} Nd7 {[%emt 0:00:01][%csl LRc5,LRe5]} 30. Qxd5 {[%emt 0:00:04]} Nxe5 {[%emt 0:00:01]} 31. dxe5 {[%emt 0:00:02]} Qb6 {[%emt 0:00:02] [#]} (31... Qf5 $11) 32. Bd3 $2 {[%emt 0:00:17]} (32. h5 $1 $18 {[%cal Rh5g6]} Bf5 33. Qxf7) 32... Bxd3 $11 {[%emt 0:01:33] The position is equal.} 33. Qxd3+ {[%emt 0:00:02][%mdl 4096] Endgame KQ-KQ} Kg8 {[%emt 0:00:01]} 34. Qd7 {[%emt 0:00:20] Black must now prevent Qe8+.} Qb1+ {[%emt 0:00:05]} 35. Kg2 {[%emt 0:00:42]} Qe4+ {[%emt 0:00:03]} 36. Kg1 {[%emt 0:00:08]} Qe1+ {[%emt 0:00:17]} 37. Kg2 {[%emt 0:00:02]} Qe4+ {[%emt 0:00:01]} 38. Kg1 {[%emt 0:00:01]} Qa8 {[%emt 0:00:02] Inhibits Qe8+.} 39. f4 {[%emt 0:00:23]} a5 {[%emt 0:00:14]} 40. f5 {[%emt 0:00:01]} Qf3 {[%emt 0:00:05]} 41. e6 {[%emt 0:01:16]} Qxg3+ {[%emt 0:00:02]} 42. Kf1 {[%emt 0:00:02]} Qf3+ {[%emt 0:00:01]} 43. Ke1 {[%emt 0:00:13]} Qe3+ {[%emt 0:00:01]} 44. Kd1 {[%emt 0:00:14]} Qf3+ {[%emt 0:00:01]} 45. Ke1 {[%emt 0:00:12]} Qe3+ {[%emt 0:00:01]} 46. Kd1 {[%emt 0:00:01]} Qf3+ {[%emt 0:00:01]} 47. Ke1 {[%emt 0:00:01] Weighted Error Value: White=0.14 (very precise) /Black=0.18 (very precise)} 1/2-1/2

[Event "MCCT Oslo Esports Cup 2022"]
[Site "Oslo"]
[Date "2022.04.20"]
[Round "6.3"]
[White "Carlsen, Magnus"]
[Black "Hansen, Eric"]
[Result "1-0"]
[ECO "D41"]
[WhiteElo "2864"]
[BlackElo "2606"]
[Annotator "TA"]
[PlyCount "79"]
[EventDate "2022.04.14"]
[EventType "tourn"]
[EventCountry "NOR"]
[SourceTitle "playchess.com"]
[Source "ChessBase"]
[SourceQuality "1"]
[TimeControl "900+10"]

{[%evp 20,79,17,8,12,12,28,8,12,0,0,0,0,0,0,0,6,16,2,10,45,47,53,26,36,39,55,11,14,2,10,0,0,4,42,55,97,99,147,12,150,163,184,179,195,102,95,109,466,459,1126,1026,29973,692,689,689,668,590,974,948,1206,693]} 1. d4 {[%emt 0:00:00]} Nf6 {[%emt 0:00:00]} 2. c4 {[%emt 0:00:02]} e6 {[%emt 0:00:03]} 3. Nf3 {[%emt 0:00:02]} d5 {[%emt 0:00:16]} 4. Nc3 {[%emt 0:00:02]} c5 {[%emt 0:00:04]} 5. cxd5 {[%emt 0:00:45]} Nxd5 {[%emt 0:00:01]} 6. e4 {[%emt 0:00:21]} Nxc3 {[%emt 0:00:02]} 7. bxc3 {[%emt 0:00:02]} cxd4 {[%emt 0:00:00]} 8. cxd4 {[%emt 0:00:00]} Bb4+ {[%emt 0:00:01]} 9. Bd2 {[%emt 0:00:00]} Bxd2+ {[%emt 0:00:01]} 10. Qxd2 {[%emt 0:00:00]} O-O {[%emt 0:00:03]} 11. Rc1 {[%emt 0:00:25]} b6 {[%emt 0:00:17] D41: Queen's Gambit Declined: Semi-Tarrasch with 5 cxd5.} 12. Bd3 {[%emt 0:00:02]} Bb7 {[%emt 0:00:03]} 13. O-O {[%emt 0:00:02]} Nd7 {[%emt 0:00:08][%cal Bb8d7,Bd7f6,Bf6e4][%mdl 32] The position is equal.} 14. Qf4 {[%emt 0:00:55]} h6 {[%emt 0:00:11]} 15. h4 {[%emt 0:01:40]} Nf6 {[%emt 0:00:46] [#]} 16. d5 $146 {[%emt 0:00:25]} ({Predecessor:} 16. Rfe1 Rc8 17. e5 Rxc1 18. Rxc1 Nh5 19. Qg4 Bxf3 20. gxf3 g6 21. a4 Ng7 22. Qf4 {1-0 (47) Bu,X (2729)-Dominguez Perez,L (2750) Hengshui 2019}) 16... exd5 {[%emt 0:01:58]} 17. e5 {[%emt 0:00:03]} Ne4 {[%emt 0:00:01]} 18. Nd4 {[%emt 0:00:01] Black must now prevent Nf5.} Bc8 {[%emt 0:02:39]} 19. Rc6 {[%emt 0:02:52]} Bd7 {[%emt 0:01:39]} 20. Bxe4 {[%emt 0:00:01]} dxe4 {[%emt 0:00:14]} 21. Rd6 {[%emt 0:00:01]} Qe7 {[%emt 0:00:32]} 22. Re1 {[%emt 0:00:01][%cal Bf1e1,Be1e4,Be4c4,Bc4c3,Bc3g3][%mdl 32]} Rac8 {[%emt 0:00:07]} 23. Rxe4 {[%emt 0:00:48]} (23. Re3 $5 {[%cal Re3g3]}) 23... Rc3 {[%emt 0:02:16]} 24. Kh2 {[%emt 0:00:36]} Re8 {[%emt 0:01:51]} 25. Ne2 {[%emt 0:02:25]} Rc6 {[%emt 0:01:19] Threatens to win with ...Rxd6.} 26. Ng3 {[%emt 0:00:04][%cal Oe5e6] And now e6! would win.} Rxd6 {[%emt 0:01:49]} 27. exd6 {[%emt 0:00:00]} Qd8 {[%emt 0:00:00]} 28. Rc4 $1 {[%emt 0:00:03]} Re6 {[%emt 0:01:01]} (28... Be6 $142 29. Rc7 Qf6 30. Qxf6 gxf6) 29. Nf5 $40 {[%emt 0:00:12][%mdl 128] Black needs to defend precisely.} (29. Rc7 $16) 29... Kh8 {[%emt 0:01:37]} (29... g5 $1 $11 {remains equal.} 30. Qf3 (30. Qd4 Qf6 $11) 30... Qf6) 30. Ne7 $1 $16 {[%emt 0:00:27]} Rf6 {[%emt 0:00:25]} 31. Qd4 {[%emt 0:00:31]} a5 {[%emt 0:00:25]} 32. Kg1 {[%emt 0:00:25]} (32. h5 $18) 32... Re6 {[%emt 0:00:11]} 33. Rc3 {[%emt 0:00:23] 0x0.0024a5be0a82dp-1022s more active pieces.} Be8 $2 {[%emt 0:00:24][%mdl 8192] Loses the game.} (33... b5 $16) 34. Rg3 $18 {[%emt 0:01:57][%csl Gg3][%cal Rd4g7]} ({Less strong is} 34. Rc8 Qd7 $16) 34... Rf6 {[%emt 0:00:03] [#]} (34... f6 $142) 35. Nf5 $1 {[%emt 0:00:25][%cal Og3g7][%mdl 512]} g6 {[%emt 0:00:20] [#]} (35... Qd7 36. Nxg7) 36. Ne7 {[%emt 0:00:09]} (36. Re3 $142 $1 gxf5 {[#]} 37. Rxe8+ $1 {[%mdl 512]} Qxe8 38. Qxf6+ Kh7 39. Qe7 Qxe7 40. dxe7 h5 41. e8=Q) 36... Qxd6 {[%emt 0:00:08] White is clearly winning.} 37. Nd5 {[%emt 0:00:02][%mdl 64] Pin} Kg7 {[%emt 0:00:10]} 38. Rd3 {[%emt 0:01:47]} (38. Qxf6+ Qxf6 39. Nxf6 Kxf6 $16) 38... b5 {[%emt 0:00:10]} 39. g4 {[%emt 0:00:22] g5 is the strong threat.} (39. Nxf6 Qxf6 40. Qc5 Qc6 41. Qxc6 Bxc6 $18) 39... g5 {[%emt 0:00:25]} 40. f4 {[%emt 0:00:07] Weighted Error Value: White=0.35/Black=0.58} ({Not} 40. Nxf6 Qxf6 41. hxg5 hxg5 42. Qxf6+ Kxf6 $18) 1-0

[Event "MCCT Oslo Esports Cup 2022"]
[Site "Oslo"]
[Date "2022.04.20"]
[Round "6.3"]
[White "Giri, Anish"]
[Black "Le, Quang Liem"]
[Result "1/2-1/2"]
[ECO "E52"]
[WhiteElo "2773"]
[BlackElo "2709"]
[Annotator "TA"]
[PlyCount "81"]
[EventDate "2022.04.14"]
[EventType "tourn"]
[EventCountry "NOR"]
[SourceTitle "playchess.com"]
[Source "ChessBase"]
[SourceQuality "1"]
[TimeControl "900+10"]

{[%evp 15,81,0,0,0,0,0,0,-10,-14,-5,0,0,2,0,15,15,15,15,10,0,0,0,0,0,4,0,0,10,0,0,0,0,17,0,0,0,0,0,0,0,0,-23,-21,-80,-77,-101,-103,-139,-145,-173,-160,-238,-196,-260,-90,-109,0,-259,-258,-327,-314,-304,-291,-332,-317,-418,-420,-477]} 1. d4 {[%emt 0:00:00]} Nf6 {[%emt 0:00:00]} 2. c4 {[%emt 0:00:02]} e6 {[%emt 0:00:01]} 3. Nc3 {[%emt 0:00:01]} Bb4 {[%emt 0:00:02]} 4. Nf3 {[%emt 0:00:01]} d5 {[%emt 0:00:01]} 5. e3 {[%emt 0:00:10]} O-O {[%emt 0:00:03]} 6. Bd2 {[%emt 0:00:02]} b6 {[%emt 0:00:01]} 7. cxd5 {[%emt 0:00:02]} exd5 {[%emt 0:00:01]} 8. Bd3 {[%emt 0:00:01]} Bb7 {[%emt 0:00:01]} 9. Qb1 {[%emt 0:00:59] E52: Nimzo-Indian: Rubinstein: 4...0-0 5 Nf3 d5 6 Bd3 b6.} Re8 {[%emt 0:01:41]} 10. O-O {[%emt 0:00:41]} Nbd7 {[%emt 0:00:12] [#]} 11. Ne2 $146 {[%emt 0:00:08] The position is equal.} ({Predecessor:} 11. Rc1 a6 12. a3 Bd6 13. b4 Ne4 14. a4 Ndf6 15. Be1 h6 16. b5 a5 17. Qc2 Rc8 {0-1 (17) Winkler,M (1211)-Camps,J (1784) LSS email 2013}) 11... Bd6 {[%emt 0:00:26]} 12. b4 {[%emt 0:00:05]} Ne4 {[%emt 0:00:10]} 13. b5 {[%emt 0:00:04]} a5 {[%emt 0:01:02]} 14. a4 {[%emt 0:02:10]} Nxd2 {[%emt 0:01:34]} 15. Nxd2 {[%emt 0:00:01]} ({Don't go for} 15. Bxh7+ $2 Kh8 16. Nxd2 Qh4 $19) 15... Nf6 {[%emt 0:00:04]} 16. Qc2 {[%emt 0:02:51]} g6 {[%emt 0:00:41]} 17. Rae1 {[%emt 0:00:51]} Rc8 {[%emt 0:00:06]} 18. Qb3 {[%emt 0:00:43]} Bb4 {[%emt 0:00:12]} 19. Rd1 {[%emt 0:00:06]} c5 {[%emt 0:00:20] aiming for ...c4.} 20. bxc6 $1 {[%emt 0:00:02]} Bxc6 {[%emt 0:00:02]} 21. Nf3 {[%emt 0:00:07]} Re7 {[%emt 0:00:56]} 22. Ra1 {[%emt 0:00:55]} Rec7 {[%emt 0:01:01]} 23. Ne5 {[%emt 0:00:03]} Be8 {[%emt 0:00:03]} 24. Ba6 {[%emt 0:00:05]} Ra8 {[%emt 0:00:04]} 25. Bb5 {[%emt 0:00:57]} Rac8 {[%emt 0:00:04]} 26. Ba6 {[%emt 0:01:35]} Ra8 {[%emt 0:00:03]} 27. Bb5 {[%emt 0:00:29]} Rac8 {[%emt 0:00:09]} 28. Qd3 {[%emt 0:00:07]} Ne4 {[%emt 0:00:20]} 29. Nf4 {[%emt 0:00:32]} (29. Bxe8 $11 Qxe8 30. Qa6) 29... Nc3 $1 $17 {[%emt 0:01:02]} 30. Bxe8 {[%emt 0:00:30]} Qxe8 {[%emt 0:00:00]} 31. h3 {[%emt 0:00:36]} Bd6 {[%emt 0:00:12]} 32. Ng4 {[%emt 0:00:30] [#] Nf6+ is the strong threat.} Kg7 {[%emt 0:00:13] Against Nf6} 33. Rfe1 {[%emt 0:00:18]} (33. Qd2 $17) 33... h5 {[%emt 0:01:54]} 34. Nh2 {[%emt 0:00:02]} (34. Ne5 {is a better defense.}) 34... Re7 $2 {[%emt 0:00:17]} (34... Qe4 $19 35. Qd2 Bb4) 35. Rec1 {[%emt 0:00:45] [#]} Rec7 {[%emt 0:00:03]} (35... Bb4 $1 $17 36. Nf3 Rec7) 36. Re1 $1 $19 {[%emt 0:00:04]} Qe4 {[%emt 0:00:34]} 37. Qd2 {[%emt 0:00:52]} Bb4 {[%emt 0:00:27][%cal Oc3a4]} 38. f3 {[%emt 0:00:01]} Qe8 {[%emt 0:00:01]} 39. Qd3 {[%emt 0:01:04] Against Nb1} Rc4 {[%emt 0:02:10]} 40. Rf1 {[%emt 0:00:12]} Bd6 {[%emt 0:00:20] White must now prevent ...Bxf4.} 41. Rae1 {[%emt 0:00:04][%mdl 32768] Weighted Error Value: White=0.18 (very precise) /Black=0.11 (very precise) . An unexpected result.} 1/2-1/2